[Event "Open NK Rapid 2025 bord 26-50"]
[Site "Helmond, Netherlands"]
[Date "2025.05.03"]
[Round "3.13"]
[White "Bekkink, Sereyo"]
[Black "Van Happen, Niels"]
[Result "1-0"]
[TimeControl "15 min +5 sec increment"]
[WhiteFideId "1037161"]
[BlackFideId "40101100"]
[WhiteElo "2064"]
[BlackElo "1782"]

1. e4 {[%clk 00:15:09]} {[%emt 00:00:01]} e5 {[%clk 00:15:08]} {[%emt
00:00:01]} 2. Nf3 {[%clk 00:15:13]} {[%emt 00:00:02]} Nc6 {[%clk 00:15:10]}
{[%emt 00:00:03]} 3. Nc3 {[%clk 00:15:17]} {[%emt 00:00:01]} Nf6 {[%clk
00:15:06]} {[%emt 00:00:09]} 4. h3 {[%clk 00:15:21]} {[%emt 00:00:01]} d5
{[%clk 00:13:58]} {[%emt 00:01:13]} 5. exd5 {[%clk 00:15:25]} {[%emt 00:00:02]}
Nxd5 {[%clk 00:14:01]} 6. Bb5 {[%clk 00:15:29]} Nxc3 {[%clk 00:13:28]} {[%emt
00:00:38]} 7. bxc3 {[%clk 00:15:33]} Bd6 {[%clk 00:13:22]} {[%emt 00:00:10]} 8.
O-O {[%clk 00:15:35]} {[%emt 00:00:04]} O-O {[%clk 00:12:59]} {[%emt 00:00:28]}
9. d4 {[%clk 00:15:39]} {[%emt 00:00:01]} exd4 {[%clk 00:11:13]} {[%emt
00:01:51]} 10. cxd4 {[%clk 00:15:43]} Ne7 {[%clk 00:11:18]} {[%emt 00:00:01]}
11. Bd3 {[%clk 00:14:49]} {[%emt 00:00:58]} Ng6 {[%clk 00:10:58]} {[%emt
00:00:25]} 12. Ng5 {[%clk 00:13:25]} {[%emt 00:01:29]} h6 {[%clk 00:10:09]}
{[%emt 00:00:54]} 13. Ne4 {[%clk 00:12:41]} {[%emt 00:00:49]} Bf4 {[%clk
00:09:30]} {[%emt 00:00:44]} 14. Ba3 {[%clk 00:11:49]} {[%emt 00:00:57]} Re8
{[%clk 00:09:22]} {[%emt 00:00:14]} 15. Re1 {[%clk 00:11:52]} {[%emt 00:00:02]}
Bf5 {[%clk 00:08:06]} {[%emt 00:01:20]} 16. c3 {[%clk 00:11:07]} {[%emt
00:00:51]} Qd5 {[%clk 00:05:28]} {[%emt 00:02:41]} 17. Qf3 {[%clk 00:11:09]}
{[%emt 00:00:03]} Be6 {[%clk 00:03:41]} {[%emt 00:01:53]} 18. Bb2 {[%clk
00:10:45]} {[%emt 00:00:29]} f5 {[%clk 00:02:58]} {[%emt 00:00:48]} 19. c4
{[%clk 00:08:37]} {[%emt 00:02:14]} fxe4 {[%clk 00:02:17]} {[%emt 00:00:46]} 20.
cxd5 {[%clk 00:08:39]} {[%emt 00:00:02]} exf3 {[%clk 00:02:20]} {[%emt
00:00:02]} 21. dxe6 {[%clk 00:08:30]} {[%emt 00:00:14]} Ne7 {[%clk 00:02:22]}
{[%emt 00:00:03]} 22. g3 {[%clk 00:07:53]} {[%emt 00:00:42]} Bd6 {[%clk
00:02:04]} {[%emt 00:00:23]} 23. Be4 {[%clk 00:07:44]} {[%emt 00:00:14]} Rf8
{[%clk 00:01:57]} {[%emt 00:00:12]} 24. Re3 {[%clk 00:07:30]} {[%emt 00:00:19]}
c6 {[%clk 00:01:39]} {[%emt 00:00:23]} 25. Rxf3 {[%clk 00:07:14]} {[%emt
00:00:20]} Rxf3 {[%clk 00:01:31]} {[%emt 00:00:14]} 26. Bxf3 {[%clk 00:07:18]}
{[%emt 00:00:01]} b5 {[%clk 00:00:59]} {[%emt 00:00:37]} 27. Kf1 {[%clk
00:04:48]} {[%emt 00:02:35]} Rc8 {[%clk 00:00:50]} {[%emt 00:00:14]} 28. Rc1
{[%clk 00:04:50]} {[%emt 00:00:03]} c5 {[%clk 00:00:49]} {[%emt 00:00:05]} 29.
dxc5 {[%clk 00:04:15]} {[%emt 00:00:41]} Rxc5 {[%clk 00:00:37]} {[%emt
00:00:16]} 30. Rd1 {[%clk 00:03:53]} {[%emt 00:00:28]} Be5 {[%clk 00:00:23]}
{[%emt 00:00:19]} 31. Be4 {[%clk 00:03:16]} {[%emt 00:00:42]} g6 {[%clk
00:00:12]} {[%emt 00:00:16]} 32. Ba3 {[%clk 00:03:19]} {[%emt 00:00:02]} Rc7
{[%clk 00:00:14]} {[%emt 00:00:03]} 33. Rd7 {[%clk 00:02:51]} {[%emt 00:00:33]}
1-0

[Event "Open NK Rapid 2025 bord 26-50"]
[Site "Helmond, Netherlands"]
[Date "2025.05.03"]
[Round "3.14"]
[White "Seth, Aakrit"]
[Black "Schleipfenbauer, Bent"]
[Result "1/2-1/2"]
[TimeControl "15 min +5 sec increment"]
[WhiteFideId "34604812"]
[BlackFideId "1048759"]
[WhiteElo "1780"]
[BlackElo "1992"]

1. d4 {[%clk 00:15:08]} {[%emt 00:00:01]} d5 {[%clk 00:15:10]} {[%emt
00:00:01]} 2. Bf4 {[%clk 00:15:11]} {[%emt 00:00:01]} Nf6 {[%clk 00:15:14]}
{[%emt 00:00:01]} 3. e3 {[%clk 00:15:16]} c5 {[%clk 00:15:17]} {[%emt
00:00:02]} 4. c3 {[%clk 00:15:19]} Nc6 {[%clk 00:15:17]} {[%emt 00:00:05]} 5.
Nf3 {[%clk 00:15:23]} {[%emt 00:00:01]} Qb6 {[%clk 00:15:21]} {[%emt 00:00:01]}
6. Qb3 {[%clk 00:15:27]} {[%emt 00:00:01]} c4 {[%clk 00:15:25]} {[%emt
00:00:01]} 7. Qc2 {[%clk 00:15:31]} Bf5 {[%clk 00:15:16]} {[%emt 00:00:13]} 8.
Qc1 {[%clk 00:15:35]} {[%emt 00:00:01]} h6 {[%clk 00:14:42]} {[%emt 00:00:39]}
9. h3 {[%clk 00:15:36]} {[%emt 00:00:05]} Qa6 {[%clk 00:14:29]} {[%emt
00:00:18]} 10. Be2 {[%clk 00:15:19]} {[%emt 00:00:23]} b5 {[%clk 00:14:31]}
{[%emt 00:00:02]} 11. a3 {[%clk 00:15:20]} {[%emt 00:00:04]} e6 {[%clk
00:13:01]} {[%emt 00:01:36]} 12. Nbd2 {[%clk 00:15:23]} {[%emt 00:00:02]} Be7
{[%clk 00:12:36]} {[%emt 00:00:29]} 13. O-O {[%clk 00:15:26]} {[%emt 00:00:02]}
O-O {[%clk 00:12:40]} {[%emt 00:00:01]} 14. b3 {[%clk 00:14:55]} {[%emt
00:00:36]} Qb7 {[%clk 00:10:55]} {[%emt 00:01:51]} 15. Qb2 {[%clk 00:13:55]}
{[%emt 00:01:04]} a5 {[%clk 00:10:33]} {[%emt 00:00:27]} 16. bxc4 {[%clk
00:13:53]} {[%emt 00:00:08]} dxc4 {[%clk 00:10:16]} {[%emt 00:00:22]} 17. Nxc4
{[%clk 00:13:53]} {[%emt 00:00:04]} Rfc8 {[%clk 00:09:48]} {[%emt 00:00:33]} 18.
Nd6 {[%clk 00:13:17]} {[%emt 00:00:42]} Bxd6 {[%clk 00:09:52]} {[%emt
00:00:01]} 19. Bxd6 {[%clk 00:13:20]} {[%emt 00:00:01]} Qd7 {[%clk 00:09:56]}
20. Bh2 {[%clk 00:13:12]} {[%emt 00:00:14]} Na7 {[%clk 00:09:07]} {[%emt
00:00:55]} 21. Ne5 {[%clk 00:13:04]} {[%emt 00:00:12]} Qb7 {[%clk 00:07:17]}
{[%emt 00:01:55]} 22. Nd3 {[%clk 00:12:13]} {[%emt 00:00:55]} Nd7 {[%clk
00:05:57]} {[%emt 00:01:26]} 23. Rfc1 {[%clk 00:10:55]} {[%emt 00:01:23]} Be4
{[%clk 00:06:00]} {[%emt 00:00:02]} 24. f3 {[%clk 00:10:51]} {[%emt 00:00:08]}
Bd5 {[%clk 00:06:03]} {[%emt 00:00:03]} 25. Ne5 {[%clk 00:10:14]} {[%emt
00:00:42]} Nxe5 {[%clk 00:05:50]} {[%emt 00:00:18]} 26. Bxe5 {[%clk 00:10:16]}
{[%emt 00:00:02]} Bc4 {[%clk 00:05:50]} {[%emt 00:00:06]} 27. Rab1 {[%clk
00:10:03]} {[%emt 00:00:18]} Bxe2 {[%clk 00:05:36]} {[%emt 00:00:20]} 28. Qxe2
{[%emt 00:00:16]} Rc6 {[%clk 00:05:05]} {[%emt 00:00:22]} 29. a4 {[%clk
00:09:33]} {[%emt 00:00:37]} b4 {[%clk 00:05:05]} {[%emt 00:00:05]} 30. cxb4
{[%clk 00:09:32]} {[%emt 00:00:06]} Rxc1+ {[%clk 00:05:09]} {[%emt 00:00:02]}
31. Rxc1 {[%clk 00:09:36]} Qxb4 {[%clk 00:03:42]} {[%emt 00:01:31]} 32. Qa2
{[%clk 00:09:36]} {[%emt 00:00:05]} Rc8 {[%clk 00:03:32]} {[%emt 00:00:15]} 33.
Rb1 {[%clk 00:07:26]} {[%emt 00:02:15]} Qc3 {[%clk 00:03:36]} 34. Qb3 {[%clk
00:07:30]} {[%emt 00:00:02]} Rc4 {[%clk 00:02:54]} {[%emt 00:00:45]} 35. Qxc3
{[%clk 00:06:14]} {[%emt 00:01:22]} Rxc3 {[%clk 00:02:57]} {[%emt 00:00:03]} 36.
Rb8+ {[%clk 00:06:11]} {[%emt 00:00:08]} Kh7 {[%clk 00:02:57]} {[%emt
00:00:04]} 37. Kf2 {[%clk 00:01:30]} {[%emt 00:04:46]} Rc1 {[%clk 00:02:11]}
{[%emt 00:00:52]} 38. Rb7 {[%clk 00:01:06]} {[%emt 00:00:28]} Nc6 {[%clk
00:02:14]} {[%emt 00:00:02]} 39. Rxf7 {[%clk 00:01:09]} {[%emt 00:00:01]} Nxe5
{[%clk 00:02:14]} {[%emt 00:00:06]} 40. dxe5 {[%clk 00:01:09]} {[%emt
00:00:05]} Rc4 {[%clk 00:01:49]} {[%emt 00:00:30]} 41. Rf4 {[%clk 00:01:11]}
{[%emt 00:00:03]} Rc5 {[%clk 00:01:34]} {[%emt 00:00:20]} 42. Re4 {[%clk
00:01:15]} Kg6 {[%clk 00:01:38]} {[%emt 00:00:02]} 43. f4 {[%clk 00:01:13]}
{[%emt 00:00:07]} Kf5 {[%clk 00:01:24]} {[%emt 00:00:18]} 44. Kf3 {[%clk
00:01:17]} g5 {[%clk 00:01:11]} {[%emt 00:00:18]} 45. g4+ {[%clk 00:01:12]}
{[%emt 00:00:11]} Kg6 {[%clk 00:01:15]} {[%emt 00:00:01]} 46. Rd4 {[%clk
00:00:41]} {[%emt 00:00:35]} h5 {[%clk 00:01:00]} {[%emt 00:00:20]} 47. Rd6
{[%clk 00:00:37]} {[%emt 00:00:09]} hxg4+ {[%clk 00:01:00]} {[%emt 00:00:05]}
48. hxg4 {[%clk 00:00:39]} {[%emt 00:00:03]} Kf7 {[%clk 00:01:00]} {[%emt
00:00:04]} 49. Ke4 {[%clk 00:00:37]} {[%emt 00:00:07]} Rc4+ {[%clk 00:00:58]}
{[%emt 00:00:08]} 50. Rd4 {[%clk 00:00:41]} {[%emt 00:00:01]} Rc7 {[%clk
00:00:41]} {[%emt 00:00:21]} 51. f5 {[%clk 00:00:45]} {[%emt 00:00:01]} Rb7
{[%clk 00:00:38]} {[%emt 00:00:09]} 52. fxe6+ {[%clk 00:00:34]} {[%emt
00:00:16]} Kxe6 {[%clk 00:00:41]} {[%emt 00:00:01]} 53. Rd6+ {[%clk 00:00:38]}
{[%emt 00:00:01]} Ke7 {[%clk 00:00:43]} {[%emt 00:00:04]} 54. Kf5 {[%clk
00:00:42]} Rb4 {[%clk 00:00:45]} {[%emt 00:00:02]} 55. Rd4 {[%clk 00:00:46]}
{[%emt 00:00:01]} Rb3 {[%clk 00:00:45]} {[%emt 00:00:06]} 56. e4 {[%clk
00:00:39]} {[%emt 00:00:11]} Rb4 {[%clk 00:00:32]} {[%emt 00:00:18]} 57. Rd5
{[%clk 00:00:23]} {[%emt 00:00:21]} Rxa4 {[%clk 00:00:35]} {[%emt 00:00:03]} 58.
e6 {[%clk 00:00:27]} Ra1 {[%clk 00:00:32]} {[%emt 00:00:08]} 59. Rd7+ {[%clk
00:00:29]} {[%emt 00:00:03]} Ke8 {[%clk 00:00:36]} 60. Ra7 {[%clk 00:00:32]}
{[%emt 00:00:03]} a4 {[%clk 00:00:31]} {[%emt 00:00:10]} 61. e7 {[%clk
00:00:34]} {[%emt 00:00:02]} Kf7 {[%clk 00:00:27]} {[%emt 00:00:09]} 62. e5
{[%clk 00:00:27]} {[%emt 00:00:12]} Rf1+ {[%clk 00:00:20]} {[%emt 00:00:13]} 63.
Kxg5 {[%clk 00:00:31]} Re1 {[%clk 00:00:24]} 64. Kf5 {[%clk 00:00:27]} {[%emt
00:00:10]} Rf1+ {[%clk 00:00:28]} {[%emt 00:00:01]} 65. Ke4 {[%clk 00:00:27]}
{[%emt 00:00:02]} Re1+ {[%clk 00:00:32]} {[%emt 00:00:04]} 66. Kd4 {[%clk
00:00:19]} {[%emt 00:00:12]} Rd1+ {[%clk 00:00:22]} {[%emt 00:00:15]} 67. Kc3
{[%clk 00:00:13]} {[%emt 00:00:11]} Re1 {[%clk 00:00:21]} {[%emt 00:00:06]} 68.
Rxa4 {[%clk 00:00:10]} {[%emt 00:00:08]} Rxe5 {[%clk 00:00:20]} {[%emt
00:00:07]} 69. Ra7 {[%clk 00:00:11]} {[%emt 00:00:04]} Re4 {[%clk 00:00:11]}
{[%emt 00:00:14]} 70. g5 {[%clk 00:00:12]} {[%emt 00:00:03]} Rg4 {[%clk
00:00:12]} {[%emt 00:00:04]} 71. Kd3 {[%clk 00:00:09]} {[%emt 00:00:09]} Rxg5
{[%clk 00:00:15]} {[%emt 00:00:02]} 72. Kd4 {[%clk 00:00:13]} {[%emt 00:00:01]}
Rh5 {[%clk 00:00:17]} {[%emt 00:00:02]} 1/2-1/2

[Event "Open NK Rapid 2025 bord 26-50"]
[Site "Helmond, Netherlands"]
[Date "2025.05.03"]
[Round "3.15"]
[White "Hoornstra, Hans"]
[Black "Van Boxel, Tamara"]
[Result "1-0"]
[TimeControl "15 min +5 sec increment"]
[WhiteFideId "1036076"]
[BlackFideId "1078747"]
[WhiteElo "1976"]
[BlackElo "1780"]

1. e4 {[%clk 00:15:07]} {[%emt 00:00:02]} e5 {[%clk 00:15:09]} {[%emt
00:00:01]} 2. Nf3 {[%clk 00:15:10]} {[%emt 00:00:02]} Nc6 {[%clk 00:15:11]}
{[%emt 00:00:04]} 3. Bc4 {[%clk 00:15:13]} {[%emt 00:00:01]} Bc5 {[%clk
00:15:10]} {[%emt 00:00:06]} 4. c3 {[%clk 00:15:16]} {[%emt 00:00:02]} Nf6
{[%clk 00:15:07]} {[%emt 00:00:09]} 5. d3 {[%clk 00:15:19]} {[%emt 00:00:01]}
O-O {[%clk 00:15:09]} {[%emt 00:00:04]} 6. O-O {[%clk 00:15:08]} {[%emt
00:00:16]} h6 {[%clk 00:15:12]} {[%emt 00:00:02]} 7. Re1 {[%clk 00:15:10]}
{[%emt 00:00:02]} Bb6 {[%clk 00:15:05]} {[%emt 00:00:13]} 8. Nbd2 {[%clk
00:14:49]} {[%emt 00:00:24]} d6 {[%clk 00:15:09]} {[%emt 00:00:03]} 9. Nf1
{[%clk 00:14:17]} {[%emt 00:00:36]} Bg4 {[%clk 00:14:03]} {[%emt 00:01:11]} 10.
h3 {[%clk 00:13:29]} {[%emt 00:00:53]} Bh5 {[%clk 00:14:06]} {[%emt 00:00:02]}
11. Ng3 {[%clk 00:13:20]} {[%emt 00:00:14]} Bg6 {[%clk 00:13:51]} {[%emt
00:00:20]} 12. Nh4 {[%clk 00:12:37]} {[%emt 00:00:48]} Bh7 {[%clk 00:13:20]}
{[%emt 00:00:37]} 13. Ngf5 {[%clk 00:09:18]} {[%emt 00:03:23]} Qd7 {[%clk
00:12:08]} {[%emt 00:01:18]} 14. g4 {[%clk 00:09:05]} {[%emt 00:00:17]} Ne7
{[%clk 00:11:37]} {[%emt 00:00:36]} 15. Ne3 {[%clk 00:08:39]} {[%emt 00:00:31]}
Ng6 {[%clk 00:11:22]} {[%emt 00:00:20]} 16. Nxg6 {[%clk 00:07:36]} {[%emt
00:01:08]} Bxg6 {[%clk 00:11:25]} {[%emt 00:00:02]} 17. Qf3 {[%clk 00:07:10]}
{[%emt 00:00:30]} Nh7 {[%clk 00:11:02]} {[%emt 00:00:29]} 18. h4 {[%clk
00:07:04]} {[%emt 00:00:11]} Nf6 {[%clk 00:10:55]} {[%emt 00:00:13]} 19. Kg2
{[%clk 00:06:53]} {[%emt 00:00:15]} c6 {[%clk 00:10:39]} {[%emt 00:00:22]} 20.
h5 {[%clk 00:06:38]} {[%emt 00:00:19]} Bh7 {[%clk 00:10:33]} {[%emt 00:00:12]}
21. Nf5 {[%clk 00:06:19]} {[%emt 00:00:24]} d5 {[%clk 00:10:27]} {[%emt
00:00:10]} 22. exd5 {[%clk 00:06:20]} {[%emt 00:00:04]} cxd5 {[%clk 00:10:29]}
{[%emt 00:00:03]} 23. Bb3 {[%clk 00:04:34]} {[%emt 00:01:52]} Bxf5 {[%clk
00:10:16]} {[%emt 00:00:17]} 24. gxf5 {[%clk 00:04:33]} {[%emt 00:00:06]} e4
{[%clk 00:10:00]} {[%emt 00:00:22]} 25. dxe4 {[%clk 00:04:03]} {[%emt
00:00:34]} dxe4 {[%clk 00:10:04]} {[%emt 00:00:01]} 26. Qg3 {[%clk 00:03:49]}
{[%emt 00:00:19]} Qxf5 {[%clk 00:09:54]} {[%emt 00:00:16]} 27. Bxh6 {[%clk
00:03:40]} {[%emt 00:00:13]} Nxh5 {[%clk 00:09:50]} {[%emt 00:00:09]} 28. Qg5
{[%clk 00:03:36]} {[%emt 00:00:09]} Qxf2+ {[%clk 00:09:05]} {[%emt 00:00:51]}
29. Kh3 {[%clk 00:03:34]} {[%emt 00:00:07]} Qf3+ {[%clk 00:09:04]} {[%emt
00:00:05]} 30. Kh2 {[%clk 00:03:27]} {[%emt 00:00:12]} Bc7+ {[%clk 00:09:08]}
{[%emt 00:00:01]} 31. Kg1 {[%clk 00:03:21]} {[%emt 00:00:11]} Bb6+ {[%clk
00:08:54]} {[%emt 00:00:19]} 32. Kh2 {[%clk 00:03:24]} {[%emt 00:00:01]} Bf2
{[%clk 00:06:36]} {[%emt 00:02:24]} 33. Rg1 {[%clk 00:02:33]} {[%emt 00:00:56]}
Bxg1+ {[%clk 00:05:45]} {[%emt 00:00:57]} 34. Rxg1 {[%clk 00:02:37]} {[%emt
00:00:01]} Qf6 {[%clk 00:05:02]} {[%emt 00:00:47]} 35. Qxh5 {[%clk 00:02:15]}
{[%emt 00:00:27]} Qxh6 {[%clk 00:05:06]} {[%emt 00:00:01]} 36. Qxh6 {[%clk
00:02:18]} {[%emt 00:00:02]} Rad8 {[%clk 00:05:04]} {[%emt 00:00:08]} 37. Qxg7#
{[%clk 00:02:01]} {[%emt 00:00:05]} 1-0

[Event "Open NK Rapid 2025 bord 26-50"]
[Site "Helmond, Netherlands"]
[Date "2025.05.03"]
[Round "3.16"]
[White "Blijlevens, Pim"]
[Black "Zhang, Xiheng"]
[Result "0-1"]
[TimeControl "15 min +5 sec increment"]
[WhiteFideId "1022997"]
[BlackFideId "40102386"]
[WhiteElo "1969"]
[BlackElo "1778"]

1. f4 {[%clk 00:12:13]} {[%emt 00:02:56]} d5 {[%clk 00:15:07]} {[%emt
00:00:03]} 2. Nf3 {[%clk 00:12:16]} {[%emt 00:00:02]} Nf6 {[%clk 00:15:08]}
{[%emt 00:00:04]} 3. e3 {[%clk 00:12:19]} {[%emt 00:00:02]} c5 {[%clk
00:15:09]} {[%emt 00:00:04]} 4. Bb5+ {[%clk 00:12:21]} {[%emt 00:00:02]} Bd7
{[%clk 00:15:07]} {[%emt 00:00:08]} 5. Qe2 {[%clk 00:12:23]} {[%emt 00:00:02]}
g6 {[%clk 00:14:52]} {[%emt 00:00:21]} 6. O-O {[%clk 00:12:21]} {[%emt
00:00:07]} Bg7 {[%clk 00:14:30]} {[%emt 00:00:27]} 7. Ne5 {[%clk 00:11:54]}
{[%emt 00:00:31]} Nc6 {[%clk 00:13:53]} {[%emt 00:00:43]} 8. Bxc6 {[%clk
00:11:48]} {[%emt 00:00:11]} Bxc6 {[%clk 00:13:47]} {[%emt 00:00:11]} 9. Nxc6
{[%clk 00:11:12]} {[%emt 00:00:42]} bxc6 {[%clk 00:13:48]} {[%emt 00:00:02]} 10.
b3 {[%clk 00:10:48]} {[%emt 00:00:30]} Ne4 {[%clk 00:13:37]} {[%emt 00:00:16]}
11. c3 {[%clk 00:10:42]} {[%emt 00:00:10]} O-O {[%clk 00:12:53]} {[%emt
00:00:50]} 12. Bb2 {[%clk 00:10:39]} {[%emt 00:00:07]} e6 {[%clk 00:12:01]}
{[%emt 00:00:58]} 13. d3 {[%clk 00:10:33]} {[%emt 00:00:11]} Nd6 {[%clk
00:11:34]} {[%emt 00:00:30]} 14. c4 {[%clk 00:10:04]} {[%emt 00:00:36]} Bxb2
{[%clk 00:11:10]} {[%emt 00:00:29]} 15. Qxb2 {[%clk 00:10:07]} {[%emt
00:00:02]} Nf5 {[%clk 00:10:23]} {[%emt 00:00:52]} 16. e4 {[%clk 00:07:20]}
{[%emt 00:02:53]} dxe4 {[%clk 00:09:38]} {[%emt 00:00:50]} 17. dxe4 {[%clk
00:07:22]} {[%emt 00:00:02]} Ne3 {[%clk 00:09:06]} {[%emt 00:00:37]} 18. Re1
{[%clk 00:06:14]} {[%emt 00:01:12]} Qd4 {[%clk 00:08:43]} {[%emt 00:00:29]} 19.
Qxd4 {[%clk 00:06:17]} {[%emt 00:00:03]} cxd4 {[%clk 00:08:47]} 20. Re2 {[%clk
00:05:59]} {[%emt 00:00:22]} Rad8 {[%clk 00:07:52]} {[%emt 00:01:01]} 21. Nd2
{[%clk 00:05:40]} {[%emt 00:00:23]} Nc2 {[%clk 00:07:34]} {[%emt 00:00:23]} 22.
Rd1 {[%clk 00:05:23]} {[%emt 00:00:21]} d3 {[%clk 00:06:48]} {[%emt 00:00:51]}
23. Rf2 {[%clk 00:05:26]} {[%emt 00:00:02]} Ne3 {[%clk 00:05:27]} {[%emt
00:01:26]} 24. Re1 {[%clk 00:05:08]} {[%emt 00:00:23]} Nc2 {[%clk 00:05:06]}
{[%emt 00:00:27]} 25. Rd1 {[%clk 00:05:12]} Rd7 {[%clk 00:05:05]} {[%emt
00:00:07]} 26. g3 {[%clk 00:04:49]} {[%emt 00:00:27]} f6 {[%clk 00:04:49]}
{[%emt 00:00:20]} 27. Rf3 {[%clk 00:04:35]} {[%emt 00:00:19]} Nd4 {[%clk
00:04:25]} {[%emt 00:00:30]} 28. Rf2 {[%clk 00:04:29]} {[%emt 00:00:11]} Ne2+
{[%clk 00:04:26]} {[%emt 00:00:04]} 29. Kg2 {[%clk 00:04:10]} {[%emt 00:00:24]}
Nc3 {[%clk 00:04:22]} {[%emt 00:00:09]} 30. Ra1 {[%clk 00:04:13]} {[%emt
00:00:02]} Rd4 {[%clk 00:04:17]} {[%emt 00:00:09]} 31. Kf3 {[%clk 00:04:04]}
{[%emt 00:00:14]} Rfd8 {[%clk 00:03:53]} {[%emt 00:00:31]} 32. Ke3 {[%clk
00:04:01]} {[%emt 00:00:07]} R4d7 {[%clk 00:03:17]} {[%emt 00:00:41]} 33. Rff1
{[%clk 00:03:59]} {[%emt 00:00:06]} Ne2 {[%clk 00:03:16]} {[%emt 00:00:07]} 34.
Rf2 {[%clk 00:03:31]} {[%emt 00:00:32]} Nd4 {[%clk 00:02:30]} {[%emt 00:00:52]}
35. Rff1 {[%clk 00:03:35]} Nc2+ {[%clk 00:02:34]} {[%emt 00:00:01]} 36. Kf3
{[%clk 00:03:34]} {[%emt 00:00:07]} Nxa1 {[%clk 00:02:32]} {[%emt 00:00:06]} 37.
Rxa1 {[%clk 00:03:38]} {[%emt 00:00:01]} c5 {[%clk 00:02:16]} {[%emt 00:00:21]}
38. Ke3 {[%clk 00:03:41]} {[%emt 00:00:02]} a5 {[%clk 00:02:07]} {[%emt
00:00:14]} 39. Rc1 {[%clk 00:03:40]} {[%emt 00:00:06]} f5 {[%clk 00:01:43]}
{[%emt 00:00:29]} 40. e5 {[%clk 00:03:24]} {[%emt 00:00:22]} h6 {[%clk
00:01:45]} {[%emt 00:00:02]} 41. Rc3 {[%clk 00:03:24]} {[%emt 00:00:05]} g5
{[%clk 00:01:47]} {[%emt 00:00:03]} 42. Kf3 {[%clk 00:03:21]} {[%emt 00:00:08]}
gxf4 {[%clk 00:01:46]} {[%emt 00:00:06]} 43. Kxf4 {[%clk 00:03:20]} {[%emt
00:00:06]} Rd4+ {[%clk 00:01:44]} {[%emt 00:00:07]} 44. Ke3 {[%clk 00:03:24]}
Kf7 {[%clk 00:01:39]} {[%emt 00:00:10]} 45. Kf3 {[%clk 00:03:28]} {[%emt
00:00:01]} h5 {[%clk 00:01:39]} {[%emt 00:00:05]} 46. Rc1 {[%clk 00:03:08]}
{[%emt 00:00:25]} h4 {[%clk 00:01:40]} {[%emt 00:00:04]} 47. Rf1 {[%clk
00:02:55]} {[%emt 00:00:18]} hxg3 {[%clk 00:01:40]} {[%emt 00:00:05]} 48. hxg3
{[%clk 00:02:55]} {[%emt 00:00:05]} Rh8 {[%clk 00:01:41]} {[%emt 00:00:04]} 49.
Rf2 {[%clk 00:02:01]} {[%emt 00:00:59]} Rh1 {[%clk 00:01:08]} {[%emt 00:00:37]}
50. Nf1 {[%clk 00:01:56]} {[%emt 00:00:11]} Re4 {[%clk 00:00:59]} {[%emt
00:00:15]} 51. Nd2 {[%clk 00:01:25]} {[%emt 00:00:35]} Rxe5 {[%clk 00:01:01]}
{[%emt 00:00:03]} 52. g4 {[%clk 00:01:09]} {[%emt 00:00:20]} Re2 {[%clk
00:00:55]} {[%emt 00:00:11]} 53. Rxe2 {[%clk 00:01:04]} {[%emt 00:00:10]} dxe2
{[%clk 00:00:59]} {[%emt 00:00:01]} 54. Kxe2 {[%clk 00:01:07]} {[%emt
00:00:02]} fxg4 {[%clk 00:01:02]} {[%emt 00:00:02]} 55. Ne4 {[%clk 00:01:10]}
{[%emt 00:00:02]} Rh2+ {[%clk 00:01:03]} {[%emt 00:00:05]} 56. Ke3 {[%clk
00:01:08]} {[%emt 00:00:07]} Rxa2 {[%clk 00:01:05]} {[%emt 00:00:02]} 57. Nxc5
{[%clk 00:01:11]} {[%emt 00:00:02]} g3 {[%clk 00:01:05]} {[%emt 00:00:06]} 0-1

[Event "Open NK Rapid 2025 bord 26-50"]
[Site "Helmond, Netherlands"]
[Date "2025.05.03"]
[Round "3.17"]
[White "Gergin, Isafara"]
[Black "Francois, Peter"]
[Result "1-0"]
[TimeControl "15 min +5 sec increment"]
[WhiteFideId "1082167"]
[BlackFideId "1089730"]
[WhiteElo "1779"]
[BlackElo "1968"]

1. e4 {[%clk 00:15:08]} {[%emt 00:00:01]} c5 {[%clk 00:15:09]} {[%emt
00:00:02]} 2. Nf3 {[%clk 00:15:11]} {[%emt 00:00:02]} g6 {[%clk 00:15:11]}
{[%emt 00:00:02]} 3. d4 {[%clk 00:15:14]} {[%emt 00:00:02]} cxd4 {[%clk
00:15:14]} {[%emt 00:00:02]} 4. Nxd4 {[%clk 00:15:18]} {[%emt 00:00:02]} Bg7
{[%clk 00:15:16]} {[%emt 00:00:02]} 5. c4 {[%clk 00:15:20]} {[%emt 00:00:03]}
Nc6 {[%clk 00:15:17]} {[%emt 00:00:04]} 6. Be3 {[%clk 00:15:23]} {[%emt
00:00:02]} d6 {[%clk 00:15:15]} {[%emt 00:00:07]} 7. Nc3 {[%clk 00:15:23]}
{[%emt 00:00:06]} Nf6 {[%clk 00:15:11]} {[%emt 00:00:08]} 8. Be2 {[%clk
00:15:24]} {[%emt 00:00:04]} O-O {[%clk 00:15:10]} {[%emt 00:00:06]} 9. O-O
{[%clk 00:15:27]} {[%emt 00:00:03]} Bd7 {[%clk 00:15:03]} {[%emt 00:00:11]} 10.
Rc1 {[%clk 00:15:18]} {[%emt 00:00:14]} a6 {[%clk 00:15:02]} {[%emt 00:00:07]}
11. h3 {[%clk 00:14:46]} {[%emt 00:00:37]} Rc8 {[%clk 00:14:19]} {[%emt
00:00:48]} 12. b3 {[%clk 00:14:38]} {[%emt 00:00:12]} Qc7 {[%clk 00:13:35]}
{[%emt 00:00:49]} 13. Qd2 {[%clk 00:14:19]} {[%emt 00:00:24]} Rfd8 {[%clk
00:13:26]} {[%emt 00:00:14]} 14. f4 {[%clk 00:13:59]} {[%emt 00:00:26]} Qb8
{[%clk 00:12:22]} {[%emt 00:01:08]} 15. f5 {[%clk 00:13:15]} {[%emt 00:00:49]}
Na7 {[%clk 00:11:39]} {[%emt 00:00:48]} 16. Bh6 {[%clk 00:12:12]} {[%emt
00:01:08]} b5 {[%clk 00:11:09]} {[%emt 00:00:35]} 17. Bxg7 {[%clk 00:11:32]}
{[%emt 00:00:45]} Kxg7 {[%clk 00:11:11]} {[%emt 00:00:03]} 18. Kh1 {[%clk
00:10:58]} {[%emt 00:00:40]} b4 {[%clk 00:09:54]} {[%emt 00:01:22]} 19. Nd5
{[%clk 00:10:46]} {[%emt 00:00:17]} Nxe4 {[%clk 00:09:20]} {[%emt 00:00:38]} 20.
Qf4 {[%clk 00:10:39]} {[%emt 00:00:12]} Nf6 {[%clk 00:07:14]} {[%emt 00:02:11]}
21. fxg6 {[%clk 00:10:19]} {[%emt 00:00:26]} hxg6 {[%clk 00:06:54]} {[%emt
00:00:24]} 22. Nxe7 {[%clk 00:09:55]} {[%emt 00:00:29]} Nh5 {[%clk 00:03:13]}
{[%emt 00:03:46]} 23. Qxf7+ {[%clk 00:09:52]} {[%emt 00:00:08]} Kh6 {[%clk
00:03:15]} {[%emt 00:00:03]} 24. Qxg6# {[%clk 00:09:54]} {[%emt 00:00:04]} 1-0